bitfinex/quotes_ETHUSD_20260305
["timestamp","ask_amount","ask_price","bid_price","bid_amount"]
[1772710687935,5.8222881,2142.5,2142.0,0.04668534]
[1772710688142,4.70198855,2142.4,2141.9,1.16718801]
[1772710688446,4.70198855,2142.4,2141.8,1.16720769]
[1772710689427,0.04657458,2142.4,2141.8,1.16720769]
[1772710689746,4.65541397,2142.5,2141.8,1.16720769]
[1772710689954,4.65541397,2142.4,2141.8,1.16720769]
[1772710691224,4.65541397,2142.4,2142.1,0.0011]
[1772710691424,4.65541397,2142.2,2142.1,0.0011]
[1772710692363,0.001,2142.3,2142.1,0.0011]
[1772710692846,4.65641397,2142.3,2141.9,0.0011]
[1772710693029,4.65486397,2142.2,2141.9,0.0011]
[1772710693352,4.65486397,2142.2,2141.7,0.1671074]
[1772710693552,4.65486397,2142.2,2141.4,0.0011]
[1772710693553,4.65486397,2142.0,2141.4,0.0011]
[1772710693850,4.65486397,2142.0,2141.4,1.16855862]
[1772710694042,4.65486397,2142.0,2141.4,0.0011]
[1772710694240,4.65486397,2142.0,2141.4,1.21525868]
[1772710696553,1.16703144,2142.2,2141.4,1.21525868]
[1772710696554,4.65486397,2142.2,2141.4,1.21525868]
[1772710697051,0.001,2142.3,2141.4,1.21525868]
[1772710698548,4.65586397,2142.3,2141.4,1.21525868]
[1772710698854,4.65586397,2142.3,2141.4,2.95056026]
[1772710699044,4.65486397,2142.1,2141.4,2.95056026]
[1772710700532,0.04757458,2142.3,2141.4,2.95056026]
[1772710700729,0.04757458,2142.3,2141.4,7.09723158]
[1772710700730,0.001,2142.3,2141.4,7.09723158]
[1772710701145,0.001,2142.3,2141.5,4.14667132]
[1772710702260,4.65586397,2142.3,2141.6,1.16735151]
[1772710702667,4.65586397,2142.3,2141.5,8.81607737]
[1772710702668,4.65486397,2142.1,2141.5,1.16738612]
[1772710702962,4.65486397,2142.1,2141.6,0.04669406]
[1772710703139,4.65486397,2142.1,2141.5,1.2141009]
[1772710703341,4.65486397,2142.1,2141.6,0.0011]
[1772710703544,4.65586397,2142.1,2141.6,0.0011]
[1772710704249,1.16713352,2142.0,2141.6,0.0011]
[1772710704455,4.65486397,2141.9,2141.6,0.0011]
[1772710704657,4.65486397,2141.9,2141.4,0.0011]
[1772710704960,4.65486397,2141.9,2141.4,1.16854338]
[1772710706096,4.65431397,2141.8,2141.4,0.0011]
[1772710706441,4.65431397,2141.6,2141.4,0.0011]
[1772710706764,4.65431397,2141.6,2141.1,0.0011]
[1772710707338,4.65431397,2141.6,2140.4,4.67183924]
[1772710707339,4.65431397,2141.1,2139.7,8.82001261]
[1772710707567,4.65431397,2141.1,2139.8,4.67333282]
[1772710707948,4.65431397,2141.1,2139.9,1.16800598]
[1772710708334,4.65431397,2140.9,2140.0,1.16822429]
[1772710708774,4.65431397,2140.9,2140.1,1.16800598]
[1772710710335,4.65431397,2140.9,2140.2,1.16811512]
[1772710710546,5.45984766,2141.1,2140.2,1.16811512]
[1772710710767,5.45984766,2141.1,2140.3,1.16800598]
[1772710711274,5.45984766,2141.1,2140.3,2.95100598]
[1772710712338,5.45984766,2141.1,2140.3,1.16800598]
[1772710712545,5.45984766,2141.1,2140.4,1.16800598]
[1772710713044,4.65431397,2141.0,2140.4,1.16800598]
[1772710713860,4.65431397,2141.0,2140.5,1.16800598]
[1772710715469,4.65431397,2141.0,2140.6,1.16899685]
[1772710715857,4.65431397,2141.0,2140.6,0.0011]
[1772710716051,4.65431397,2140.9,2140.6,0.0011]
[1772710716875,4.65431397,2140.9,2140.4,0.0011]
[1772710717078,4.65431397,2140.9,2140.1,0.0011]
[1772710717079,4.23453338,2140.8,2140.1,0.0011]
[1772710717487,4.23453338,2140.6,2140.1,0.0011]
[1772710718766,4.23453338,2140.6,2139.3,4.67398924]
[1772710719087,4.23453338,2140.6,2139.4,0.37711731]
[1772710719389,4.23453338,2140.6,2139.6,0.44265331]
[1772710719586,4.23453338,2140.6,2139.8,0.37711731]
[1772710719893,4.23453338,2140.9,2139.8,0.37711731]
[1772710720972,4.23453338,2140.7,2139.7,1.16838809]
[1772710722291,4.74143907,2141.0,2139.8,0.3256824]
[1772710723392,4.74143907,2141.0,2140.0,0.31121604]
[1772710724486,4.74143907,2141.0,2140.1,1.46503518]
[1772710724986,4.74143907,2141.0,2140.1,1.16816971]
[1772710725781,0.50690569,2141.0,2140.2,0.28262947]
[1772710726174,4.74143907,2141.0,2140.2,0.28262947]
[1772710726582,0.09790189,2141.0,2140.3,1.16806055]
[1772710726783,4.23453338,2141.5,2140.4,0.02351887]
[1772710727068,4.23453338,2141.5,2140.4,0.0235058]
[1772710727395,0.05837302,2141.4,2140.4,0.0235058]
[1772710727584,4.23453338,2141.3,2140.4,0.0235058]
[1772710728614,4.23453338,2141.3,2140.5,1.16795141]
[1772710728798,4.23453338,2141.3,2140.6,0.02350798]
[1772710729394,4.23453338,2141.3,2140.2,4.6722422]
[1772710729395,4.26546112,2141.2,2140.0,4.14667132]
[1772710729596,4.26546112,2141.2,2140.1,1.16816971]
[1772710729794,4.26546112,2141.2,2140.1,1.01926971]
[1772710729993,4.20708265,2141.0,2140.1,1.01926971]
[1772710730164,4.20708265,2141.0,2140.4,0.0011]
[1772710731108,4.2654693,2140.9,2140.4,0.0011]
[1772710733998,4.20708265,2140.8,2140.4,0.0011]
[1772710734383,4.20708265,2140.8,2140.1,0.0011]
[1772710734582,4.20708265,2140.8,2139.8,1.16833348]
[1772710734583,4.20653265,2140.7,2139.8,1.16833348]
[1772710734979,4.20653265,2140.6,2139.5,4.67333395]
[1772710735177,4.20653265,2140.6,2139.4,4.67333395]
[1772710735608,4.20653265,2140.6,2139.3,1.16860655]
[1772710736418,4.20653265,2140.6,2139.3,5.31527787]
[1772710736712,4.20653265,2140.6,2139.3,2.94460655]
[1772710737079,4.20653265,2140.4,2139.3,1.16860655]
[1772710739719,4.20653265,2140.4,2139.1,4.67442621]
[1772710739720,4.20653265,2140.2,2139.1,4.67442621]
[1772710739883,4.20653265,2140.2,2139.0,4.67442621]
[1772710741115,4.20653265,2140.2,2139.0,8.82109753]
[1772710741483,4.20653265,2140.2,2139.1,1.775]
[1772710741687,4.20653265,2140.1,2139.2,2.94366118]
[1772710742187,4.20653265,2140.1,2139.2,2.94266118]
[1772710742409,4.20653265,2140.1,2139.2,1.16866118]
[1772710742598,4.20653265,2140.1,2139.2,2.94376118]
[1772710742989,4.20653265,2140.1,2139.2,1.16976118]
[1772710743812,4.20653265,2139.9,2139.2,0.0011]
[1772710745215,1.16821032,2140.1,2139.2,0.0011]
[1772710745216,4.20653265,2139.7,2139.2,0.0011]
[1772710746916,4.20653265,2139.6,2139.2,0.0011]
[1772710747887,4.20653265,2139.5,2139.2,0.0011]
[1772710748287,4.20653265,2139.7,2139.2,0.0011]
[1772710748798,4.0330407,2140.0,2139.2,0.0011]
[1772710748990,0.05841394,2139.9,2139.2,0.0011]
[1772710749313,0.05841394,2139.9,2139.2,2.03910744]
[1772710749498,4.09145464,2139.9,2139.2,1.7741]
[1772710750002,4.09145464,2139.9,2139.2,1.16976118]
[1772710750003,4.0330407,2139.8,2139.2,1.16976118]
[1772710750719,4.0330407,2140.1,2139.2,3.26404297]
[1772710750893,0.05841121,2140.0,2139.2,3.26404297]
[1772710751285,0.05841121,2140.0,2139.3,2.08197783]
[1772710751900,0.05841121,2140.0,2139.4,1.16855193]
[1772710753119,4.09145191,2140.0,2139.4,1.16855193]
[1772710754504,4.0330407,2139.9,2139.4,1.16855193]
[1772710754703,0.05841667,2139.8,2139.4,1.16855193]
[1772710754904,4.09145191,2140.0,2139.4,1.16965193]
[1772710755110,0.001,2139.9,2139.4,1.16965193]
[1772710755311,0.001,2139.9,2139.5,2.03306547]
[1772710756121,4.0340407,2139.9,2139.4,1.16965193]
[1772710756520,4.0330407,2139.7,2139.4,0.0011]
[1772710756819,4.0330407,2139.7,2139.2,1.16975313]
[1772710756820,3.68525261,2139.7,2139.2,1.16975313]
[1772710757011,3.68525261,2139.7,2139.2,0.02468439]
[1772710757217,3.68525261,2139.7,2138.6,4.67576301]
[1772710757218,2.40040094,2139.5,2138.6,4.67576301]
[1772710757424,2.40040094,2139.5,2138.0,4.14667132]
[1772710757425,4.0330407,2139.4,2138.7,4.67576301]
[1772710757616,4.0330407,2139.4,2138.4,2.36796881]
[1772710757814,4.0330407,2139.4,2138.5,7.04373182]
[1772710758033,4.0330407,2139.4,2138.5,2.36796881]
[1772710758238,4.0330407,2139.4,2138.5,4.13896881]
[1772710758931,4.12108215,2139.3,2138.6,5.84585206]
[1772710759333,4.12108215,2139.3,2138.6,4.67686301]
[1772710759720,4.12108215,2139.3,2138.6,4.67576301]
[1772710760653,4.12108215,2139.3,2138.6,4.67686301]
[1772710761010,4.12108215,2139.1,2138.6,5.84582752]
[1772710761312,4.12108215,2139.1,2138.6,1.17004994]
[1772710761542,4.12108215,2139.1,2138.6,0.0011]
[1772710761839,4.12108215,2139.1,2138.0,4.67725225]
[1772710762135,4.12108215,2139.1,2138.0,1.16931711]
[1772710762346,1.16866118,2139.2,2137.9,0.003]
[1772710762347,4.12108215,2138.9,2137.9,0.003]
[1772710762527,4.12108215,2138.9,2137.9,5.84813218]
[1772710762713,4.12108215,2138.9,2137.9,5.848125]
[1772710763037,4.12108215,2138.7,2137.9,4.67876301]
[1772710763341,4.12108215,2138.6,2137.9,0.003]
[1772710764509,4.12108215,2138.3,2137.9,0.003]
[1772710765125,4.12108215,2138.1,2137.9,0.003]
[1772710765834,4.12108215,2138.1,2137.9,4.67876301]
[1772710766339,4.12108215,2138.1,2137.9,0.003]
[1772710767240,4.12108215,2138.0,2137.9,0.003]
[1772710767432,4.01552687,2138.6,2137.9,4.67876301]
[1772710767618,4.01552687,2138.6,2137.9,4.67986301]
[1772710769141,4.01552687,2138.4,2137.9,0.0041]
[1772710769443,4.01552687,2138.3,2137.6,0.0011]
[1772710769953,4.01552687,2138.3,2137.4,0.1671074]
[1772710769954,4.01552687,2137.7,2137.4,0.1671074]
[1772710770260,4.01552687,2137.7,2137.4,6.01247239]
[1772710770457,2.60680179,2137.9,2137.4,6.01247239]
[1772710770458,3.35529073,2137.8,2137.4,1.33670938]
[1772710770656,3.35529073,2137.8,2137.4,0.1671074]
[1772710771025,1.16948121,2137.7,2136.8,1.16997379]
[1772710771227,4.01552687,2137.6,2136.8,1.16997379]
[1772710771537,4.01552687,2137.9,2136.9,3.95498833]
[1772710772531,0.05846312,2138.1,2136.9,3.95498833]
[1772710772728,4.01552687,2138.0,2137.0,3.95498833]
[1772710774053,0.05846859,2137.9,2137.2,3.95498833]
[1772710775161,4.01552687,2138.0,2137.2,3.45548833]
[1772710775360,0.05846859,2137.9,2137.2,3.45548833]
[1772710775749,0.05846312,2138.1,2137.2,3.45548833]
[1772710775936,4.07398999,2138.1,2137.2,3.45548833]
[1772710776263,4.01552687,2138.0,2137.0,4.67923822]
[1772710776556,0.05846859,2137.9,2137.1,3.95498833]
[1772710776763,0.05846312,2138.1,2137.1,3.95498833]
[1772710777349,7.7913754,2138.5,2137.1,3.95498833]
[1772710777547,4.07398178,2138.4,2137.1,3.95498833]
[1772710777932,4.01552687,2138.4,2137.3,3.95498833]
[1772710778135,4.07398178,2138.4,2137.5,5.12457897]
[1772710778557,4.07398178,2138.4,2137.6,3.95498833]
[1772710778733,0.05845491,2138.4,2137.6,3.95498833]
[1772710778929,0.05844945,2138.6,2137.6,3.95498833]
[1772710779162,4.07397632,2138.6,2137.5,1.16959064]
[1772710779366,4.07397632,2138.6,2137.5,5.12457897]
[1772710779664,0.001,2138.2,2137.6,3.95498833]
[1772710780238,0.001,2138.2,2137.8,3.95498833]
[1772710780461,4.07396812,2138.9,2137.8,3.95498833]
[1772710780767,4.07396812,2138.9,2137.9,5.70398833]
[1772710780946,4.07396812,2138.9,2137.9,3.95498833]
[1772710781182,4.07396812,2138.9,2137.8,1.749]
[1772710781665,4.07396812,2138.9,2137.7,1.16948121]
[1772710782466,4.01552687,2138.7,2137.7,1.16948121]
[1772710782651,4.01552687,2138.5,2137.7,1.16948121]
[1772710782973,4.01552687,2138.3,2137.7,1.16948121]
[1772710783469,0.05846038,2138.2,2137.7,1.16948121]
[1772710784375,0.05846038,2138.2,2137.6,4.67792487]
[1772710784871,0.05846038,2138.2,2137.7,3.95498833]
[1772710785036,4.01552687,2138.6,2137.7,3.95498833]
[1772710785359,0.03481044,2138.5,2137.7,3.95498833]
[1772710785943,0.03481044,2138.5,2137.7,3.96692656]
[1772710786142,12.77147168,2139.3,2137.7,3.95498833]
[1772710786143,4.01552687,2139.0,2137.7,3.95498833]
[1772710786349,4.01552687,2139.0,2137.9,3.95498833]
[1772710786350,5.1843013,2139.0,2137.9,3.95498833]
[1772710786680,4.01552687,2138.9,2137.9,3.95498833]
[1772710788279,1.16887974,2138.8,2137.7,4.67770605]
[1772710788465,1.16887974,2138.8,2137.7,6.43470605]
[1772710788466,4.01552687,2138.7,2137.7,6.43470605]
[1772710788772,4.01552687,2138.7,2137.7,4.67770605]
[1772710790476,3.95172282,2138.5,2137.6,1.16948121]
[1772710791437,3.95272282,2138.5,2137.6,1.16948121]
[1772710792002,3.95272282,2138.5,2137.7,3.96136608]
[1772710792341,3.95272282,2138.5,2137.6,1.16948121]
[1772710792672,0.001,2138.5,2137.6,3.96136608]
[1772710793043,3.95272282,2138.5,2137.5,4.67794859]
[1772710793549,3.95272282,2138.5,2137.4,1.16964536]
[1772710793744,3.95272282,2138.5,2137.3,1.16966144]
[1772710793970,3.95272282,2138.5,2137.2,1.17082556]
[1772710794293,3.95172282,2138.2,2137.2,0.0011]
[1772710794467,3.95172282,2138.0,2137.2,0.0011]
[1772710794647,3.95172282,2137.8,2137.2,0.0011]
[1772710796754,3.95172282,2137.6,2137.0,0.0011]
[1772710797153,3.95172282,2137.6,2135.9,1.17046678]
[1772710797154,2.40724446,2137.1,2135.9,1.17046678]
[1772710797487,2.40724446,2137.1,2135.8,0.003]
[1772710797488,0.2436991,2136.7,2135.8,5.13485989]
[1772710798155,0.2436991,2136.7,2135.8,1.17349381]
[1772710798156,4.19542192,2136.7,2135.8,1.17349381]
[1772710798355,4.19542192,2136.7,2135.8,0.003]
[1772710798561,3.95172282,2136.5,2135.1,5.13227142]
[1772710798770,3.95172282,2136.3,2135.1,5.13227142]
[1772710799262,3.95172282,2136.3,2135.1,1.17090534]
[1772710800179,3.95172282,2136.3,2135.2,3.96136608]
[1772710800511,3.95172282,2136.3,2135.2,4.0082001]
[1772710800802,3.95172282,2136.3,2135.3,1.17079567]
[1772710800977,0.2436991,2136.7,2135.4,3.96136608]
[1772710801195,3.95172282,2136.6,2135.4,3.96136608]
[1772710801604,3.95172282,2136.6,2135.3,1.17079567]
[1772710802100,3.95172282,2136.6,2135.3,5.13216175]
[1772710802310,3.95172282,2136.6,2135.4,3.96136608]
[1772710802494,3.95172282,2136.5,2135.3,1.17079567]
[1772710802800,3.95172282,2136.3,2135.0,3.96136608]
[1772710803206,3.95172282,2136.3,2135.3,0.0011]
[1772710803507,3.95172282,2136.1,2135.3,0.0011]
[1772710803912,3.95172282,2136.1,2135.0,0.0011]
[1772710804080,3.57741729,2136.5,2135.0,0.0011]
[1772710804081,3.95172282,2135.5,2135.0,0.0011]
[1772710805007,3.95172282,2135.3,2135.0,0.0011]
[1772710805407,3.95172282,2135.3,2134.8,0.0011]
[1772710805598,3.95172282,2135.2,2134.8,0.0011]
[1772710805927,4.68296337,2135.5,2134.8,0.0011]
[1772710805928,5.1224498,2135.5,2134.8,0.0011]
[1772710806284,3.95172282,2135.4,2134.3,1.17134423]
[1772710806512,1.17072698,2135.5,2134.3,1.17134423]
[1772710806513,3.95172282,2135.2,2134.3,1.17134423]
[1772710806816,5.12241158,2135.5,2134.5,1.17123448]
[1772710806981,3.95172282,2135.5,2134.5,5.13260056]
[1772710807175,3.95172282,2135.8,2134.6,3.96136608]
[1772710807393,3.95172282,2135.8,2134.6,5.71936608]
[1772710807609,3.95172282,2135.8,2134.5,1.17123448]
[1772710808398,3.95172282,2135.8,2134.6,3.96136608]
[1772710808806,3.95172282,2136.2,2134.8,3.96136608]
[1772710809520,5.17822386,2136.7,2134.8,3.96136608]
[1772710809521,5.12180612,2136.6,2134.8,3.96136608]
[1772710809690,5.12180612,2136.6,2134.7,1.17112474]
[1772710809691,5.12180612,2136.6,2135.0,3.96136608]
[1772710810115,1.66812188,2136.7,2135.2,3.96136608]
[1772710810519,3.95172282,2136.6,2135.2,3.96136608]
[1772710810814,3.95172282,2136.6,2134.9,0.065536]
[1772710810815,3.95172282,2136.6,2135.4,3.96136608]
[1772710810987,3.95172282,2136.6,2135.5,5.1320521]
[1772710810988,1.17013807,2136.5,2135.5,5.1320521]
[1772710811194,5.12186089,2136.5,2135.5,5.1320521]
[1772710811498,5.12186089,2136.5,2135.5,1.17068602]
[1772710811691,3.95172282,2136.4,2135.5,1.17068602]
[1772710812305,1.17010674,2136.6,2135.6,3.96136608]
[1772710812517,5.61986805,2136.7,2135.6,3.96136608]
[1772710812899,4.44981436,2136.7,2135.7,5.13194247]
[1772710813115,0.49809154,2136.7,2135.8,3.96136608]
[1772710814394,1.66812359,2136.7,2135.8,3.96136608]
[1772710814598,1.66812359,2136.7,2135.9,1.762]
[1772710815023,1.66812359,2136.7,2135.9,1.17046678]
[1772710815227,5.61984641,2136.7,2135.9,1.17046678]
[1772710815644,0.001,2136.3,2135.9,1.17046678]
[1772710815936,0.001,2136.3,2135.4,3.96136608]
[1772710817134,0.001,2136.3,2135.3,2.93379567]
[1772710817303,0.001,2136.3,2135.4,3.96136608]
[1772710817633,0.001,2136.3,2135.2,4.68428269]
[1772710817634,3.95172282,2136.2,2135.2,0.0011]
[1772710817835,3.95172282,2135.9,2135.2,0.0011]
[1772710818134,3.95172282,2135.9,2135.2,1.17194951]
[1772710818303,3.95272282,2136.3,2135.2,1.17194951]
[1772710818755,3.95272282,2136.3,2135.2,5.13331559]
[1772710819312,3.95272282,2136.3,2135.3,1.76]
[1772710819313,5.12297239,2136.3,2135.3,1.76]
[1772710819635,5.12297239,2136.3,2135.2,1.17194951]
[1772710819636,3.91494239,2136.2,2135.2,1.17194951]
[1772710820102,3.91494239,2136.2,2135.2,0.0011]
[1772710820305,3.91494239,2136.2,2135.2,1.17194065]
[1772710820728,3.91494239,2136.2,2135.2,5.20561715]
[1772710820933,3.91494239,2136.2,2135.2,1.17194299]
[1772710821133,3.91494239,2136.0,2135.2,0.0011]
[1772710823138,1.17046678,2135.9,2135.2,0.0011]
[1772710823437,1.17046678,2135.9,2135.0,0.0011]
[1772710823438,3.91494239,2135.8,2135.0,0.0011]
[1772710824014,1.17035719,2136.1,2135.0,4.0347765]
[1772710824437,3.91494239,2136.0,2135.0,4.0347765]
[1772710824633,3.91494239,2136.0,2135.0,0.0011]
[1772710825214,3.91494239,2135.8,2135.0,0.0011]
[1772710827339,3.91494239,2135.6,2135.0,0.0011]
[1772710829239,3.99334072,2135.4,2135.0,0.0011]
[1772710830423,3.99334072,2135.4,2134.8,0.0011]
[1772710831447,5.16412178,2135.4,2134.8,0.0011]
[1772710831829,4.68232664,2135.7,2134.8,0.0011]
[1772710831830,1.17067561,2135.6,2134.8,0.0011]
[1772710832552,5.16401633,2135.6,2134.8,0.0011]
[1772710833357,1.17067561,2135.6,2134.8,3.91115725]
[1772710833526,4.68223356,2135.8,2134.8,3.91115725]
[1772710834247,3.99334072,2135.7,2134.8,3.91115725]
[1772710834954,3.99334072,2135.7,2134.8,0.0011]
[1772710835324,3.99334072,2135.5,2134.8,0.0011]
[1772710835748,1.1706214,2135.7,2134.8,0.0011]
[1772710835951,1.1706214,2135.7,2134.8,3.91115725]
[1772710836533,5.16396212,2135.7,2134.8,3.91115725]
[1772710836728,3.99334072,2135.6,2134.8,0.0011]
[1772710837854,1.17068602,2135.5,2134.8,0.0011]
[1772710838053,3.99334072,2135.4,2134.8,0.0011]
[1772710839531,1.17068602,2135.5,2134.8,0.0011]
[1772710840143,3.99334072,2135.6,2134.8,0.0011]
[1772710840735,3.99334072,2135.5,2134.8,0.0011]
[1772710841151,8.6760848,2135.8,2135.0,0.0011]
[1772710841350,0.001,2135.6,2135.0,0.0011]
[1772710842868,3.99434072,2135.6,2135.0,0.0011]
[1772710843344,0.001,2135.6,2135.0,0.0011]
[1772710843758,3.99434072,2135.6,2135.0,0.0011]
[1772710844061,1.17074084,2135.4,2134.8,0.0011]
[1772710845777,0.001,2135.6,2134.8,0.0011]
[1772710845778,1.17164715,2135.6,2134.8,3.91115725]
[1772710846139,3.99334072,2135.5,2134.8,0.0011]
[1772710848271,1.17074084,2135.4,2134.8,0.0011]
[1772710849150,1.17167667,2135.6,2134.8,3.60375097]
[1772710849669,1.17163419,2135.6,2134.8,3.60375097]
[1772710850039,1.17163546,2135.6,2134.8,3.60375097]
[1772710850244,0.001,2135.6,2134.9,4.773666]
[1772710850969,0.001,2135.6,2135.0,3.60265097]
[1772710851171,1.17043601,2136.0,2135.0,5.37065097]
[1772710851371,0.49723534,2136.1,2135.1,3.60265097]
[1772710851573,0.001,2136.1,2135.1,3.60265097]
[1772710852359,0.001,2136.1,2135.3,3.60265097]
[1772710853780,0.001,2136.1,2135.4,3.60265097]
[1772710854774,0.001,2136.1,2135.5,4.77333699]
[1772710854946,0.001,2136.1,2135.6,3.60265097]
[1772710855356,0.001,2135.9,2135.6,3.60265097]
[1772710856485,0.001,2136.1,2135.6,3.60265097]
[1772710856854,0.001,2136.1,2135.8,3.60265097]
[1772710858961,0.001,2136.1,2135.9,1.17046678]
[1772710859164,0.001,2136.1,2135.6,1.1706312]
[1772710859970,0.001,2136.1,2135.6,2.9376312]
[1772710860664,0.001,2136.1,2135.7,3.60265097]
[1772710861094,0.001,2136.1,2135.8,1.17052158]
[1772710861598,0.001,2136.3,2135.8,4.77317255]
[1772710861766,0.001,2136.3,2135.9,3.60265097]
[1772710862768,3.81486439,2137.1,2135.9,3.60265097]
[1772710862978,4.98455348,2137.4,2135.9,3.60265097]
[1772710863274,5.09519639,2137.7,2136.3,3.60265097]
[1772710863275,0.41705534,2137.7,2136.3,3.60265097]
[1772710863568,0.41705534,2137.7,2136.5,3.60265097]
[1772710863569,3.81486439,2137.6,2136.5,3.60265097]
[1772710864093,3.81486439,2137.6,2136.6,1.769]
[1772710864394,1.58654079,2137.7,2136.4,3.60265097]
[1772710864395,3.81486439,2137.4,2136.4,3.60265097]
[1772710865178,3.81486439,2137.4,2136.2,2.51227441]
[1772710865179,3.81486439,2137.2,2136.5,1.17013807]
[1772710865897,4.98449384,2137.5,2136.5,4.77278904]
[1772710866081,4.98449384,2137.5,2136.6,3.60265097]
[1772710866288,3.81486439,2137.2,2135.7,3.60265097]
[1772710866591,1.16962945,2137.5,2135.9,1.77]
[1772710866592,3.81486439,2136.9,2135.9,1.77]
[1772710866992,3.81486439,2136.9,2135.7,4.77322736]
[1772710867309,3.81486439,2136.7,2135.9,1.17046678]
[1772710868333,3.81486439,2136.7,2136.3,0.0011]
[1772710869417,3.81486439,2136.7,2136.0,0.0011]
[1772710869418,3.81486439,2136.5,2136.0,0.0011]
[1772710870819,1.1700833,2136.6,2135.1,1.17090534]
[1772710870820,3.81486439,2136.3,2135.1,1.17090534]
[1772710871025,3.81486439,2136.0,2135.1,1.17090534]
[1772710871395,1.17046678,2135.9,2135.0,8.28737234]
[1772710871800,3.81486439,2135.8,2135.0,4.68472137]
[1772710873423,4.98516679,2136.2,2135.0,3.60375097]
[1772710874010,3.81486439,2136.2,2135.0,3.60375097]
[1772710875027,6.45833398,2136.6,2135.2,3.60265097]
[1772710875028,3.81486439,2136.5,2135.2,3.60265097]
[1772710875325,4.67952694,2137.0,2135.4,3.60265097]
[1772710875326,4.9848228,2136.9,2135.4,3.60265097]
[1772710875500,4.9848228,2136.9,2135.6,3.60265097]
[1772710875698,3.81486439,2136.8,2135.6,5.37365097]
[1772710876103,3.81486439,2136.8,2135.7,3.60265097]
[1772710876821,3.81486439,2136.8,2135.6,1.771]
[1772710876822,3.81486439,2137.2,2135.9,3.60265097]
[1772710877024,3.81486439,2137.2,2136.0,3.61302123]
[1772710877712,3.81486439,2137.2,2136.0,1.18074138]
[1772710877713,3.81486439,2137.0,2136.0,1.18074138]
[1772710877916,3.81486439,2136.3,2135.2,1.1708505]
[1772710879744,3.81486439,2136.3,2135.0,1.17206018]
[1772710879745,3.91590652,2136.0,2135.0,1.17206018]
[1772710880031,3.91590652,2136.0,2135.4,0.0011]
[1772710881634,3.91590652,2136.3,2135.4,0.0011]
[1772710884565,3.91590652,2136.8,2135.5,3.72293436]
[1772710884718,3.91590652,2136.7,2135.5,3.72293436]
[1772710885038,3.91590652,2136.7,2135.7,3.72293436]
[1772710885404,3.91590652,2136.7,2135.5,3.72293436]
[1772710886023,1.16997379,2136.8,2135.5,3.72293436]
[1772710886218,1.16997379,2136.8,2135.6,1.77]
[1772710886418,1.16997379,2136.8,2135.8,4.89345594]
[1772710888630,1.16997379,2136.8,2135.9,3.69346654]
[1772710889923,5.0858323,2136.9,2135.9,3.69346654]
[1772710890435,5.08583475,2136.9,2135.9,3.69346654]
[1772710890817,3.91590652,2136.9,2136.0,4.86387852]
[1772710891033,5.0858416,2136.9,2136.0,4.86387852]
[1772710891607,3.91590652,2136.9,2136.1,3.69346654]
[1772710892339,0.001,2136.7,2136.1,3.69346654]
[1772710892844,0.001,2136.7,2135.9,4.68164794]
[1772710892845,4.9807503,2136.7,2135.9,4.68164794]
[1772710893008,0.001,2136.7,2135.9,8.37511448]
[1772710893212,0.001,2136.7,2136.0,3.69346654]
[1772710894435,1.16977884,2137.2,2136.1,2.61713735]
[1772710894650,4.97941206,2137.3,2136.2,3.69346654]
[1772710894854,4.97945218,2137.2,2136.4,3.69346654]
[1772710896444,3.80966821,2137.1,2136.4,3.69346654]
[1772710896843,3.80966821,2137.1,2136.5,1.17013807]
[1772710897053,1.16974179,2137.3,2136.5,1.17013807]
[1772710897427,1.16974179,2137.3,2136.5,4.86360461]
[1772710897614,4.98031793,2137.4,2136.5,4.86360461]
[1772710898731,3.81066821,2137.4,2136.6,3.69346654]
[1772710899050,0.001,2137.4,2136.8,3.69346654]
[1772710899942,0.001,2137.4,2136.7,1.17002854]
[1772710899943,3.80966821,2137.3,2136.7,1.17002854]
[1772710900133,3.80966821,2137.3,2136.5,4.68038117]
[1772710901019,1.16975481,2137.2,2136.5,4.68038117]
[1772710902041,0.001,2137.4,2136.6,3.69346654]
[1772710902042,4.98034159,2137.4,2136.6,3.69346654]
[1772710902244,3.80966821,2137.3,2136.5,4.68038117]
[1772710902647,3.80966821,2137.3,2136.5,8.42065323]
[1772710903147,3.80966821,2137.3,2136.6,3.69346654]
[1772710904318,4.97936939,2137.3,2136.6,3.69346654]
[1772710904521,0.001,2137.0,2136.6,3.69346654]
[1772710904931,0.001,2137.0,2136.5,4.68038117]
[1772710905143,0.001,2137.0,2136.5,6.44938117]
[1772710905455,0.001,2137.0,2136.5,1.769]
[1772710906056,0.001,2137.0,2136.6,0.04680333]
[1772710907458,3.80966821,2137.3,2136.7,1.17002854]
[1772710909453,4.97939948,2137.3,2136.6,4.68011419]
[1772710909759,3.80966821,2137.3,2136.6,4.68011419]
[1772710909945,4.97937491,2137.3,2136.6,4.68011419]
[1772710910979,3.64656791,2137.2,2136.6,4.68011419]
[1772710912982,3.64656791,2137.2,2136.6,6.45011419]
[1772710913389,0.001,2137.4,2136.6,6.45011419]
[1772710913544,0.001,2137.4,2136.7,3.6110409]
[1772710913741,0.001,2137.4,2136.8,1.16997379]
[1772710914144,0.001,2137.4,2136.8,1.21677274]
[1772710914481,3.64756791,2137.4,2136.8,1.21677274]
[1772710915884,3.64656791,2137.2,2136.8,0.04679895]
[1772710916038,3.64656791,2137.2,2136.6,1.2168407]
[1772710916866,3.64656791,2137.2,2136.6,4.78108046]
[1772710917050,1.16970008,2137.3,2136.6,4.78108046]
[1772710917547,1.17065029,2137.4,2136.7,3.56423976]
[1772710917757,4.8172182,2137.4,2136.8,0.0011]
[1772710917981,0.001,2137.1,2136.8,1.17107379]
[1772710918476,0.001,2137.1,2136.8,0.0011]
[1772710918655,3.64756791,2137.1,2136.8,0.0011]
[1772710919843,3.64756791,2137.1,2136.5,1.17120231]
[1772710920044,3.64756791,2137.1,2136.5,0.0011]
[1772710920045,3.64656791,2136.9,2136.5,0.0011]
[1772710921048,4.81742057,2137.1,2136.5,0.0011]
[1772710921250,0.001,2137.1,2136.5,3.61214528]
[1772710921467,0.001,2137.1,2136.5,3.56533976]
[1772710921882,0.001,2137.1,2136.7,3.56423976]
[1772710922056,0.001,2137.1,2136.9,1.16991904]
[1772710926356,0.001,2137.1,2136.8,4.67967616]
[1772710927261,0.001,2137.1,2136.8,6.45267616]
[1772710927882,0.001,2137.1,2136.8,10.06371487]
[1772710928054,0.001,2137.1,2136.9,3.56423976]
[1772710928560,0.001,2137.1,2137.0,1.16986429]
[1772710928881,0.001,2137.4,2137.0,1.16986429]
[1772710930284,3.64656791,2136.8,2135.7,0.0011]
[1772710930472,3.64656791,2136.2,2135.7,0.0011]
[1772710930670,3.64656791,2136.0,2135.7,0.0011]
[1772710930982,2.74372189,2135.9,2135.7,0.0011]
[1772710931159,3.64656791,2136.2,2135.7,0.0011]